Cogmind - Beta 15 @@@ ROGUE MODE // 2025.07.14 @ 14:06:14 Player: vilepis Result: Destroyed by X5-RZI(R) with Subdweller Laser Performance ------------- Evolutions (0) 0 Regions Visited (2) 400 Robots Destroyed (8) 40 Value Destroyed (321) 321 Prototype IDs (13) 260 Alien Tech Used (0) 0 Bonus (0) 0 TOTAL SCORE: 1021 Bonus ------- None Cogmind --------- Core Integrity 0/250 Matter 300/300 Energy 48/100 System Corruption 0% Temperature Cool (6) Movement Walking (120) Location -10/Subcaves Parts ------- > --- POWER (1) -------- (None) > --- PROPULSION (2) --- Improved Aluminum Leg > --- UTILITY (2) ------ Improved Heat Sink Small Storage Unit > --- WEAPON (2) ------- (None) > --- INVENTORY (8) ---- Assault Rifle Barrage Gun Battle Cannon Mining Laser Peak State ------------ > --- POWER ------------ Ion Engine Ion Engine > --- PROPULSION ------- Improved Aluminum Leg Improved Aluminum Leg > --- UTILITY ---------- Improved Heat Sink Small Storage Unit > --- WEAPON ----------- Powered Cannon > --- INVENTORY -------- Assault Rifle Barrage Gun Battle Cannon Mining Laser [Rating: 24] Favorites ----------- Power Ion Engine Engine Ion Engine Propulsion Improved Aluminum Leg Leg Improved Aluminum Leg Wheel Wheel Utility Small Storage Unit Device Improved Heat Sink Storage Small Storage Unit Weapon Assault Rifle Energy Gun Medium Laser Energy Cannon Powered Cannon Ballistic Gun Assault Rifle Ballistic Cannon Light Cannon Build | -11 -10 -10 ------- Run | Yrd Mat Sub Slots Evolved . | . . . Power . | . . . Propulsion . | . . . Utility . | . . . Weapon . | . . . Parts Attached 16 | 6 7 3 Power 2 | 1 1 . Engine 2 | 1 1 . Core . | . . . Reactor . | . . . Propulsion 4 | 2 2 . Treads . | . . . Leg 2 | . 2 . Wheel 2 | 2 . . Hover . | . . . Flight . | . . . Utility 2 | 1 1 . Device 1 | . 1 . Storage 1 | 1 . . Processor . | . . . Hackware . | . . . Protection . | . . . Artifact . | . . . Weapon 8 | 2 3 3 Energy Gun 1 | . 1 . Energy Cannon 1 | . . 1 Ballistic Gun 4 | 2 1 1 Ballistic Cannon 2 | . 1 1 Launcher . | . . . Special Weapon . | . . . Impact Weapon . | . . . Slashing Weapon . | . . . Piercing Weapon . | . . . Special Melee Weapon . | . . . Unidentified Prototypes . | . . . Parts Lost 6 | . 1 5 Power 2 | . . 2 Propulsion 2 | . 1 1 Utility . | . . . Weapon 2 | . . 2 Highest Loss Streak 4 | . 1 4 To Critical Strikes . | . . . Average Backups 2 | . 1 2 Power . | . . . Propulsion . | . . . Utility . | . . . Weapon 1 | . 1 2 Tool/Special . | . . . Unused Backups 1 | . . 1 Power . | . . . Propulsion . | . . . Utility . | . . . Weapon 1 | . . 1 Tool/Special . | . . . Average Slot Usage (%) 94 | . 94 94 Engine 14 | . 14 15 Leg 23 | . 18 26 Wheel 3 | . 9 . Device 11 | . 9 13 Storage 13 | . 14 13 Energy Gun 3 | . 7 . Energy Cannon 2 | . . 3 Ballistic Gun 15 | . 15 16 Ballistic Cannon 4 | . 5 3 Peak Build Rating 24 | 6 11 24 Average Rating 12 | 4 9 14 On Entrance 5 | . 6 11 Naked Turns . | . . . Heaviest Build 25 | 12 16 25 Greatest Support 26 | 26 26 26 Greatest Overweight (x) 1 | . 1 1 Average Overweight (x) . | . . . Largest Inventory Capacity 8 | 8 8 8 Average Capacity 7 | 6 8 8 Most Carried 5 | . 3 5 Average Carried 2 | . 1 2 Final Capacity 8 | 8 8 8 Final Carried 4 | . 3 4 Class Distribution -------------------- 100% | Mutant Dominant Class ---------------- Mutant | -10/Materials Mutant | -10/Subcaves Resources | -11 -10 -10 ----------- Run | Yrd Mat Sub Matter Collected 550 | 226 251 73 Remotely . | . . . Salvage Created 304 | . 304 . Parts 15 | . 15 . Haulers Intercepted . | . . . Recyclers Shooed . | . . . Parts Field Recycled . | . . . Retrieved Matter . | . . . Parts Self-Destructed . | . . . Prevented . | . . . Kills | -11 -10 -10 ------- Run | Yrd Mat Sub Combat Hostiles Destroyed 8 | . 8 . Guns 5 | . 5 . Cannons 3 | . 3 . Classes Destroyed 1 | . 1 . Grunt 8 | . 8 . Best Kill Streak 2 | . 2 . Combat Bots Only 2 | . 2 . Max Kills in Single Turn 1 | . 1 . Gunslinging . | . . . Exploded . | . . . Melee . | . . . Uniques/NPCs Destroyed . | . . . Combat | -11 -10 -10 -------- Run | Yrd Mat Sub Hostile Shots Fired 72 | . 48 24 Missed 14 | . 11 3 Hits 58 | . 37 21 Projectile 58 | . 37 21 Critical Strikes 1 | . 1 . Damage Taken 1043 | . 445 598 Core 271 | . 75 196 Absorbed by Shields . | . . . Core Remaining (%) 100 | 100 . . Volleys Fired 43 | . 35 8 Largest 2 | . 2 2 Hottest 70 | . 70 61 Shots Fired 80 | . 70 10 Gun 61 | . 59 2 Cannon 19 | . 11 8 Launcher . | . . . Special . | . . . Kinetic 50 | . 46 4 Thermal 30 | . 24 6 Explosive . | . . . Electromagnetic . | . . . Robot Hit Streak 7 | . 7 4 Robot Miss Streak 3 | . 3 1 Penetration Max . | . . . Secondary Targets . | . . . Shots Hit Robots 54 | . 49 5 Core Hits 18 | . 18 . Critical Kills . | . . . Critical Parts Destroyed . | . . . Critical Strikes 4 | . 4 . Burn 2 | . 2 . Blast 2 | . 2 . Melee Attacks . | . . . Impact . | . . . Slashing . | . . . Piercing . | . . . Sneak Attacks . | . . . Combat Hostiles . | . . . Follow-up Attacks . | . . . Damage Inflicted 890 | . 661 229 Guns 501 | . 501 . Cannons 389 | . 160 229 Explosions . | . . . Melee . | . . . Ramming . | . . . Kinetic 450 | . 450 . Thermal 440 | . 211 229 Explosive . | . . . Electromagnetic . | . . . Impact . | . . . Slashing . | . . . Piercing . | . . . Highest Corruption . | . . . Average Corruption . | . . . Corruption Purged . | . . . Corruption Blocked . | . . . Overload Shots . | . . . Overflow Damage 7 | . . 7 Projectiles 7 | . . 7 Explosions . | . . . Melee . | . . . Knockbacks 1 | . 1 . Impact . | . . . Kinetic 1 | . 1 . Secondary . | . . . Self-Inflicted Damage . | . . . Shots . | . . . Rammed . | . . . Targets Rammed . | . . . Kicked . | . . . Crushed . | . . . Highest Temperature 126 | . 126 . Average Temperature 59 | . 59 . Received Heat Transfer 402 | . 276 126 Siege Activations . | . . . Martial Activations . | . . . Shielding Activations . | . . . Robots Disrupted . | . . . Combat Hostiles . | . . . Robots Corrupted . | . . . Combat Hostiles . | . . . Parts Fried . | . . . Impact Corruptions . | . . . Robots Melted . | . . . Combat Hostiles . | . . . Parts Melted 1 | . 1 . Heat Transferred 777 | . 777 . Parts Sabotaged . | . . . Parts Stolen . | . . . Parts Stripped . | . . . Power Chain Reactions . | . . . Alert | -11 -10 -10 ------- Run | Yrd Mat Sub Maximum Alert Level . | . . . Low Security (%) 100 | 100 100 . Level 1 . | . . . Level 2 . | . . . Level 3 . | . . . Level 4 . | . . . Level 5 . | . . . High Security . | . . . Max Security . | . . . Peak Influence 106 | . 106 . Initial . | . . . Average 44 | . 51 . Influence Increases 240 | . 240 . Destroy 0b10 Robot/C 160 | . 160 . Destroy Leader 40 | . 40 . Successful Hack 10 | . 10 . Disable Machine 15 | . 15 . Lose Combat Pursuer 15 | . 15 . Influence Decreases 240 | . 174 66 Entered New Map 33 | . . 33 Time Decay 187 | . 164 23 Lost Part 20 | . 10 10 Squads Dispatched 1 | . 1 . Investigation . | . . . Extermination . | . . . Reinforcement 1 | . 1 . Assault . | . . . Garrison . | . . . Intercept . | . . . Searches Triggered . | . . . Construction Impeded . | . . . Haulers Reinforced . | . . . Active Scanning Responses . | . . . Cargo Convoy Interrupts . | . . . Stealth | -11 -10 -10 --------- Run | Yrd Mat Sub Distress Signals 1 | . 1 . Communications Jammed . | . . . Distress Signals . | . . . Times Spotted 15 | . 13 2 Peak Tracking Total 4 | . 4 2 Tactical Retreats 1 | . 1 . Traps | -11 -10 -10 ------- Run | Yrd Mat Sub Traps Triggered 4 | . 1 3 Indirectly . | . . . Trap Hack Attempts . | . . . Triggered . | . . . Disarmed . | . . . Reprogrammed . | . . . Reused . | . . . Traps Extracted . | . . . Installed . | . . . Triggered . | . . . Machines | -11 -10 -10 ---------- Run | Yrd Mat Sub Machines Disabled 2 | . 1 1 Max in Single Turn 1 | . 1 1 Machines Repaired . | . . . Machines Dismantled . | . . . Machines Sabotaged . | . . . Overloaded Fab Kills . | . . . Hacking | -11 -10 -10 --------- Run | Yrd Mat Sub Machines Accessed 3 | . 2 1 Terminals 2 | . 2 . Fabricators . | . . . Repair Stations . | . . . Recycling Units . | . . . Scanalyzers . | . . . Garrison Access . | . . . Total Hacks 13 | . 4 9 Successful 13 | . 4 9 Failed . | . . . Catastrophic . | . . . Database Lockouts . | . . . Manual 1 | . 1 . Terminals 4 | . 4 . Fabricators . | . . . Repair Stations . | . . . Recycling Units . | . . . Scanalyzers . | . . . Garrison Access . | . . . Terminal Hacks 13 | . 4 9 Record 10 | . 2 8 Robot Analysis 1 | . 1 . Prototype ID Bank 1 | . 1 . Proto ID Catalog 1 | . . 1 Fabricator Hacks . | . . . Repair Station Hacks . | . . . Recycling Unit Hacks . | . . . Scanalyzer . | . . . Garrison Access Hacks . | . . . Unauthorized Hacks . | . . . Terminals . | . . . Fabricators . | . . . Repair Stations . | . . . Recycling Units . | . . . Scanalyzers . | . . . Garrison Access . | . . . Data Cores Recovered . | . . . Used . | . . . Hacking Detections 1 | . 1 . Full Trace Events 1 | . 1 . Feedback Events . | . . . Feedback Blocked . | . . . Robot Schematics Acquired . | . . . Robots Built . | . . . Authchips . | . . . Time . | . . . Total Robot Build Rating . | . . . Part Schematics Acquired . | . . . Parts Built . | . . . Authchips . | . . . Time . | . . . Total Part Build Rating . | . . . Parts Repaired . | . . . Time . | . . . Parts Recycled . | . . . Recycled Matter . | . . . Retrieved Matter . | . . . Retrieved Components . | . . . Parts Scanalyzed . | . . . Part Schematics Acquired . | . . . Parts Damaged . | . . . Bothacking | -11 -10 -10 ------------ Run | Yrd Mat Sub Used RIF Installer . | . . . Robots Hacked . | . . . Non-combat . | . . . Combat . | . . . Robot Hacks Applied . | . . . Relay Couplers Released . | . . . Fabnet Peak Effective % . | . . . Robots Rewired . | . . . Allies Hacked . | . . . Hacks Repelled . | . . . Allies | -11 -10 -10 -------- Run | Yrd Mat Sub Total Allies . | . . . Largest Group . | . . . Highest-Rated Group . | . . . Highest-Rated Ally . | . . . Total Orders . | . . . Ally Attacks . | . . . Total Damage . | . . . Kills . | . . . Allies Corrupted . | . . . Allies Melted . | . . . Intel | -11 -10 -10 ------- Run | Yrd Mat Sub Active Infowar (turns) . | . . . Robot Analysis Total 1 | . 1 . Derelict Logs Recovered . | . . . Drone Launches . | . . . Drone Recoveries . | . . . Exploration | -11 -10 -10 ------------- Run | Yrd Mat Sub Turns Passed 954 | 54 391 509 Spaces Moved 676 | 51 239 386 Core 1 | 1 . . Treads . | . . . Legs 542 | . 156 386 Wheels 133 | 50 83 . Hover . | . . . Flight . | . . . Fastest Speed 50 | 50 90 120 Average Speed 115 | 88 110 121 Slowest Speed 190 | 90 190 190 Overloaded Moves . | . . . Propulsion Burnouts . | . . . Robots Hopped . | . . . Potential Cave-ins . | . . . Cave-ins Triggered . | . . . Exploration Rate (%) 25 | 3 47 27 Regions Visited 2 Branch Regions 1 Pre-discovered Areas . | . . . Known Exits Taken . | . . . Unknown Exits Taken 2 | 1 1 . Scrap Searched 3 | . . 3 Spaces Dug . | . . . Terrain Destroyed 1 | . . 1 Melee . | . . . Projectile 1 | . . 1 AOE . | . . . Terrain Rammed . | . . . Walls Destroyed . | . . . Machines Disabled . | . . . Actions | -11 -10 -10 --------- Run | Yrd Mat Sub Total 763 | 56 291 416 Wait 20 | . 8 12 Move 674 | 50 238 386 Hop . | . . . Pick Up 4 | . 1 3 Fast Attach 10 | 6 4 . Attach 3 | . . 3 Detach . | . . . Swap 7 | . 5 2 Drop 2 | . . 2 Fire 43 | . 35 8 Melee . | . . . Ram . | . . . Kick . | . . . Crush . | . . . Escape Stasis . | . . . Rewire . | . . . Trap . | . . . Miscellaneous . | . . . Route ------- -11/Scrapyard -10/Materials (discovered 2 exits: [*Mat] / *Sub) -10/Subcaves History --------- Turn | Location | Event 9 | -11/Scrapyard | Discovered new exit (range 15) 55 | -11/Scrapyard | Entered Materials 313 | -10/Materials | Build established: Mutant 374 | -10/Materials | Discovered new exit (range 13) 417 | -10/Materials | Discovered new exit (range 12) 446 | -10/Materials | Entered Subcaves 539 | -10/Subcaves | A swath of the cavern ceiling suddenly collapsed 769 | -10/Subcaves | Visited 4L-MR0's lab 802 | -10/Subcaves | Found Powered Cannon 805 | -10/Subcaves | Attached Powered Cannon, gained temporary slot: Power 919 | -10/Subcaves | Core integrity fell below 50% 932 | -10/Subcaves | Core integrity fell below 20% 955 | -10/Subcaves | Destroyed by X5-RZI(R) with Subdweller Laser Last Messages --------------- 00803_ Dropped Barrage Gun. 00803_ Dropped Battle Cannon. The Powered Cannon is "overloadable", activating it again increases its power for an additional resource cost, and may have unintended consequences. See Stability stat context help for more info. 00805_ Core temporarily expanded with Power slot. 00806_ Acquired Battle Cannon. 00808_ Acquired Barrage Gun. 00824_ Connecting with 4L-MR0's Prototype Logs... 00832_ Acquired 31 matter. 00920_ Ion Engine destroyed. 00921_ Destroyed Sub. Optics. 00922_ Ion Engine destroyed. 00923_ Temporary Power slot lost. 00925_ Imp. Aluminum Leg destroyed. 00953_ Powered Cannon destroyed. Map ----- +----------------------------------------------------+ | | | | | | | | | | | | | | | ?????????????????????????????????????????????????? | | ?????????????????????????????????????????????????? | | ?????????????????????????????????????????????????? | | ?????????????????????????????????????????????????? | | ?????????????????????????????????????????????????? | | ########?????????????????????????????????????????? | | """"#" #?????????????????????????????????????????? | | "X" #?????????????????????????????????????????? | | ###?????????????????????????????????????????? | | ####????????????????????????????????????????? | | #######"#????????????????????????????????????????? | | ???####%#????????????????????????????????????????? | | ####""]"#????????????????????????????????????????? | | "##????????????????????????????????????????? | | ##""#####?????????????????????????????????????? | | # "#### ##??###???????????????????????????????? | | " "#### #??# ##??????????????????????????????? | | " ## #??# #?????###??????????????????????? | | #?## #???###@#??????????????????????? | | ### ##??## #??????????????????????? | | ## ## ##??## RR##???????????? ????????? | | ##### ## ##??# ###?????????""????????? | | #???## ##?## ######???"""" ??????? | | ????## ###### ## "#?? """ ??????? | | ????# #### ###""""" ? ???? | | """ #? | | ## " #??????? | | ##### #??????? | | ## ### ##???# #??????? | | ### ### ##?## ##???# #?????? | | ??## ### ##?# ###???####??? ???? | | ???##?# ???## #??????????? " ?? | | ??????# ????###????????? " ? | | ?????? ??????????????? "# ### #? | | ????? ??????????????## ####???##?? | | ???? ### ????????????????## ## #?????????? | | ???????? ?????????????????## #?## " ?????????? | | ???????????????????????????####???? " ????????? | | ???????????????????????????????????# "????????? | | ????????????????????????????????????# ??????????? | | ????????????????????????????????????? "??????????? | | ?????????????????????????????????????#???????????? | | ?????????????????????????????????????????????????? | +----------------------------------------------------+ Best States ------------- Heat Dissipation 39 Energy Generation 15 Energy Capacity 400 Matter Stores 300 Matter Capacity 300 Sight Range 16 Terrain Scan Density 10 Evasion (%) 55 Item Schematics ----------------- None Robot Schematics ------------------ None Fabricated ------------ Nothing Repaired ---------- Nothing Alien Tech Used ----------------- None Achievements -------------- None Challenges ------------ None Game ------ Seed ShiftGhostShield Manual? 0 Play Time 00:11:09 Cumulative 20.1 hours Start 2025.07.14 @ 13:58:35 End 2025.07.14 @ 14:06:14 Sessions 1 Manual Loads 0 Difficulty Rogue Special Mode None Game No. 40 Rogue 40 Adventurer 0 Explorer 0 Win Type - Total 0 Types 0/0/0/0/0/0/0/0/0/0 Lore% 20 Gallery% 21 Achievement% 20 Wizard Run 0 Options --------- Layout 2 ASCII 0 Keyboard 0 Movement Mouse Keybinds 1 Fullscreen 2 Font 32/Smallcaps Map View 50x44 Zoom Use 0% Tactical HUD 1 Map Filters NONE Filters NONE Steam 1 RUN: 3eea1d02-3b38-4848-b933-55cb20ef0bf8